bitfinex/quotes_ETHUSD_20250804
["timestamp","ask_amount","ask_price","bid_price","bid_amount"]
[1754342307374,0.928,3725.3,3725.0,2.68449381]
[1754342307570,0.928,3725.3,3724.4,2.68496201]
[1754342307571,1e-08,3725.4,3724.3,0.32063741]
[1754342307751,0.928,3725.2,3725.1,2.68449169]
[1754342308065,0.928,3725.2,3725.0,2.68455068]
[1754342308271,1e-08,3725.4,3724.1,0.19902258]
[1754342308272,3.61249483,3725.1,3724.1,0.19902258]
[1754342308473,0.492,3725.0,3724.9,2.68463582]
[1754342308977,0.928,3725.0,3724.9,2.68463582]
[1754342310470,0.928,3725.0,3724.5,0.001]
[1754342310771,3.61268613,3724.9,3724.2,2.68513849]
[1754342310988,0.928,3724.8,3724.2,2.68513849]
[1754342311279,0.928,3724.7,3724.5,2.68487947]
[1754342311436,0.492,3725.1,3725.0,2.68456375]
[1754342311638,5.536,3725.1,3724.3,2.68502838]
[1754342311865,5.536,3725.1,3725.0,2.68456375]
[1754342312037,5.536,3725.1,3724.9,2.68461943]
[1754342312238,0.928,3725.0,3724.9,2.68461943]
[1754342312463,0.928,3725.0,3724.9,2.58141943]
[1754342312871,0.928,3725.0,3724.1,0.001]
[1754342313036,0.928,3725.0,3724.9,2.68463582]
[1754342313241,5.531,3725.0,3724.9,2.68463582]
[1754342313478,5.531,3725.0,3724.8,2.68469345]
[1754342313653,0.928,3724.9,3724.4,2.68493823]
[1754342313859,0.928,3724.9,3724.1,0.001]
[1754342313860,0.96155884,3724.8,3724.1,0.001]
[1754342314198,4.602,3724.7,3724.1,0.001]
[1754342314339,4.602,3724.7,3724.3,2.68506833]
[1754342314340,0.1336,3724.4,3724.3,2.68506833]
[1754342314536,0.1336,3724.6,3724.5,2.68488948]
[1754342314975,0.1336,3724.6,3724.2,2.68514043]
[1754342315173,2.68514043,3724.2,3724.1,0.001]
[1754342315392,2.68499624,3724.4,3723.7,0.001]
[1754342315670,0.928,3724.1,3723.7,0.001]
[1754342315877,4.604,3724.0,3723.7,0.001]
[1754342316254,0.928,3723.9,3723.7,0.001]
[1754342316650,0.928,3723.8,3723.7,0.001]
[1754342317474,3.61342886,3723.8,3723.7,0.001]
[1754342317676,5.525,3723.8,3723.7,0.001]
[1754342317976,8.24399672,3723.8,3723.7,0.001]
[1754342318163,9.34939744,3723.8,3723.7,0.001]
[1754342318852,39.34939744,3723.8,3723.7,0.001]
[1754342319058,42.89939744,3723.8,3723.7,0.001]
[1754342319784,42.89939744,3723.8,3723.7,1e-08]
[1754342321174,38.30239744,3723.8,3723.7,1e-08]
[1754342321390,9.13196799,3724.5,3723.7,1e-08]
[1754342321391,0.492,3725.5,3723.7,1e-08]
[1754342321565,0.494,3725.8,3723.7,3.13730001]
[1754342321903,4.619,3725.1,3724.3,2.6850325]
[1754342322058,4.619,3725.1,3724.4,2.68498555]
[1754342322393,42.03555704,3725.0,3723.7,1e-08]
[1754342322556,5.41335306,3724.9,3723.8,2.68542886]
[1754342322761,5.41335306,3724.9,3723.7,1e-08]
[1754342322762,2.68477998,3724.7,3723.7,1e-08]
[1754342322960,0.96155884,3724.8,3723.7,1e-08]
[1754342322961,2.6850785,3724.3,3723.7,1e-08]
[1754342323158,2.68515766,3724.2,3723.7,1e-08]
[1754342323463,3.0,3724.9,3723.7,1e-08]
[1754342323671,0.492,3724.7,3723.7,1e-08]
[1754342323906,0.492,3724.7,3724.0,2.68522243]
[1754342324188,4.625,3724.6,3724.1,2.6851754]
[1754342324355,4.625,3724.6,3723.7,1e-08]
[1754342324555,0.96156155,3724.5,3723.7,1e-08]
[1754342324808,0.55865616,3724.4,3723.7,1e-08]
[1754342325108,0.55865616,3724.4,3722.1,2.89008212]
[1754342325109,0.55,3723.6,3722.1,2.89008212]
[1754342325254,3.0,3723.4,3722.1,0.20344148]
[1754342325455,2.6860059,3723.0,3722.1,0.20344148]
[1754342325669,2.68631989,3722.6,3722.1,0.20344148]
[1754342325889,0.1336,3722.1,3721.8,0.001]
[1754342326199,4.631,3722.0,3721.9,2.68679975]
[1754342326367,4.629,3722.0,3721.9,2.68679975]
[1754342326988,4.628,3722.0,3721.9,3.22427264]
[1754342328106,0.1336,3722.1,3722.0,2.68672756]
[1754342328587,9.1348526,3723.3,3721.9,0.53747289]
[1754342328588,0.1336,3722.5,3721.9,0.53747289]
[1754342328790,4.622,3722.4,3722.3,2.68649046]
[1754342328988,4.622,3722.4,3721.9,0.53747289]
[1754342328989,0.1336,3722.5,3721.9,0.53747289]
[1754342329189,4.62,3722.4,3722.2,2.68652654]
[1754342329493,4.62,3722.4,3721.9,0.53747289]
[1754342329662,4.62,3722.4,3722.2,2.68658017]
[1754342329862,0.1336,3722.5,3721.8,0.1346]
[1754342329863,0.1336,3722.5,3722.0,2.68667512]
[1754342330101,0.4705,3722.4,3721.8,0.1346]
[1754342330386,5.0865,3722.4,3721.8,0.001]
[1754342330586,0.1336,3722.0,3721.8,2.68785581]
[1754342330890,0.4705,3722.4,3722.2,2.68657828]
[1754342331195,0.4705,3722.4,3722.2,2.68656586]
[1754342331395,4.614,3722.3,3722.2,2.68656586]
[1754342331601,0.4705,3722.4,3722.3,2.68651102]
[1754342331820,5.0835,3722.4,3722.3,2.68651102]
[1754342332681,4.613,3722.4,3722.3,2.68651102]
[1754342333083,5.0702,3722.4,3721.8,0.001]
[1754342333272,0.1336,3721.9,3721.8,0.001]
[1754342333595,4.7456,3721.9,3721.8,2.68787194]
[1754342333795,0.4705,3722.3,3722.0,2.68667129]
[1754342333964,4.612,3722.2,3722.1,2.68665538]
[1754342334667,0.1336,3722.4,3722.3,2.68651102]
[1754342334867,4.7416,3722.4,3722.2,2.68657632]
[1754342335104,0.1336,3722.4,3722.3,2.68651102]
[1754342335464,4.7406,3722.4,3722.3,2.68651102]
[1754342335970,5.1978,3722.4,3721.8,0.26978719]
[1754342336194,0.1336,3722.1,3722.0,2.68672756]
[1754342336676,0.1336,3722.1,3721.9,2.68678276]
[1754342336869,0.1336,3722.1,3722.0,2.68672756]
[1754342338177,0.1336,3722.1,3722.0,3.22418682]
[1754342338384,0.1336,3722.4,3722.0,0.53745926]
[1754342338586,4.592,3722.3,3722.1,2.68659748]
[1754342338806,0.1336,3722.4,3722.3,2.68651102]
[1754342339008,4.7246,3722.4,3722.3,2.68651102]
[1754342339205,0.1336,3722.8,3722.3,0.59106257]
[1754342339505,4.59,3722.7,3722.6,2.68629452]
[1754342339706,0.6041,3722.8,3722.7,2.68622236]
[1754342339903,5.1931,3722.8,3722.7,2.68622236]
[1754342340068,4.7226,3722.8,3722.7,2.68622236]
[1754342340271,4.7226,3722.8,3722.6,2.68626486]
[1754342340467,0.4705,3722.7,3722.6,2.68626486]
[1754342341495,4.7226,3722.8,3722.7,2.68622236]
[1754342341902,0.1336,3722.8,3722.7,2.68622236]
[1754342342102,4.05062179,3724.4,3722.7,2.68622236]
[1754342342103,0.4705,3723.6,3722.7,3.22343144]
[1754342342275,0.1336,3723.2,3723.0,2.68599998]
[1754342342470,0.6041,3723.2,3723.1,2.68593376]
[1754342342694,4.7116,3723.2,3723.1,2.68593376]
[1754342342894,2.68494895,3724.5,3722.3,3.0014]
[1754342342895,0.4705,3724.3,3724.0,2.68528464]
[1754342343102,2.68455943,3725.1,3723.0,2.6860059]
[1754342343103,4.58,3724.2,3724.1,2.68521253]
[1754342343407,4.7136,3724.2,3724.1,2.68521253]
[1754342343613,4.7136,3724.2,3723.6,0.1336]
[1754342343811,4.7136,3724.2,3724.0,2.68526787]
[1754342343812,5.1841,3724.2,3724.0,2.68526787]
[1754342344182,5.1841,3724.2,3723.6,0.1336]
[1754342344183,4.7136,3724.2,3723.6,0.1336]
[1754342344381,0.4705,3724.1,3723.6,0.1336]
[1754342344622,5.1708,3724.2,3724.0,2.68526548]
[1754342345128,5.1708,3724.2,3723.6,0.1336]
[1754342345275,0.4705,3724.1,3723.2,3.0]
[1754342345475,0.1336,3723.8,3723.6,2.6855195]
[1754342345787,0.1336,3723.6,3723.4,2.68571041]
[1754342345991,0.4705,3723.5,3723.4,2.68571041]
[1754342346920,0.9277,3723.5,3723.2,2.68585406]
[1754342347080,0.1336,3723.4,3723.3,2.68577221]
[1754342347521,0.1336,3723.4,3723.3,3.24503393]
[1754342347821,0.1336,3723.4,3723.3,3.22495021]
[1754342348008,4.562,3723.5,3723.4,2.68571735]
[1754342348579,4.562,3723.5,3722.9,0.20428635]
[1754342348580,5.4897,3723.5,3722.9,0.20428635]
[1754342348816,5.4897,3723.5,3722.3,2.68647666]
[1754342349016,0.4705,3723.4,3723.0,2.68594879]
[1754342349181,0.9277,3723.3,3722.7,2.68621113]
[1754342349513,0.9277,3723.3,3723.0,2.68598929]
[1754342349714,3.23478819,3724.7,3723.0,2.68598929]
[1754342349715,0.4705,3723.9,3723.0,2.68594668]
[1754342349913,4.567,3723.8,3723.1,0.28867821]
[1754342350080,0.4705,3723.9,3723.7,2.68545666]
[1754342350277,0.4705,3724.4,3723.1,2.70599653]
[1754342350517,4.566,3724.3,3723.8,2.68537419]
[1754342350724,0.9277,3724.2,3723.8,2.68537419]
[1754342351031,0.4705,3724.1,3723.8,2.68537419]
[1754342351403,0.9277,3724.0,3723.0,3.0]
[1754342351703,0.9277,3724.0,3723.5,2.68564284]
[1754342351908,0.4705,3724.0,3723.9,2.68535674]
[1754342352108,4.561,3724.0,3723.9,2.68535674]
[1754342352726,5.0315,3724.0,3723.7,2.68543211]
[1754342352884,5.0315,3724.0,3723.2,2.68586162]
[1754342352885,0.9277,3723.9,3723.8,2.68542886]
[1754342353091,0.4705,3723.9,3723.8,2.68542886]
[1754342353522,4.556,3723.9,3723.8,2.68542886]
[1754342354098,4.556,3723.9,3723.7,2.68547724]
[1754342354421,4.556,3723.9,3723.8,2.68542886]
[1754342354632,0.4572,3724.3,3723.1,0.5686078]
[1754342354633,0.4705,3724.3,3724.1,2.68517518]
[1754342354830,4.552,3724.2,3724.0,2.68527112]
[1754342355014,4.552,3724.2,3723.8,2.68540231]
[1754342355220,5.0225,3724.2,3724.1,2.68521253]
[1754342355722,5.0225,3724.2,3723.1,0.5686078]
[1754342355723,5.0225,3724.2,3723.2,0.02007415]
[1754342356031,5.0225,3724.2,3724.1,2.68521253]
[1754342356430,5.0225,3724.2,3724.0,2.68526214]
[1754342356729,5.0225,3724.2,3724.1,2.68521253]
[1754342357141,5.0225,3724.2,3724.0,2.68527888]
[1754342357432,5.0225,3724.2,3723.1,2.68593376]
[1754342357632,0.4572,3724.7,3723.9,2.68529565]
[1754342357841,4.538,3724.6,3723.4,2.68571735]
[1754342358009,4.538,3724.6,3724.5,2.68492415]
[1754342358229,5.25263162,3724.6,3724.5,2.68492415]
[1754342358539,5.002,3724.6,3724.5,2.68492415]
[1754342358740,5.6095,3724.6,3724.3,2.68503581]
[1754342359058,0.1336,3724.4,3723.8,2.81902781]
[1754342359351,0.9379,3724.5,3723.5,2.68564522]
[1754342359352,0.464,3724.3,3723.5,2.68564522]
[1754342359535,4.533,3724.2,3724.1,2.68521253]
[1754342361133,4.533,3724.2,3723.9,2.81889519]
[1754342361134,0.1336,3724.5,3724.4,2.68499624]
[1754342361335,4.6666,3724.5,3724.4,2.68499624]
[1754342362346,0.1336,3724.5,3724.4,2.68499624]
[1754342362647,4.525,3724.5,3724.4,3.22200372]
[1754342362848,4.525,3724.5,3724.4,2.68499624]
[1754342363218,4.989,3724.5,3724.4,2.68499624]
[1754342364335,5.4629,3724.5,3724.4,2.68499624]
[1754342364821,4.525,3724.5,3724.4,2.68499624]
[1754342365618,0.1336,3724.7,3724.5,2.68490904]
[1754342365817,0.1336,3724.7,3724.0,0.1336]
[1754342365818,4.9929,3724.6,3724.0,2.81887229]
[1754342366022,4.9929,3724.6,3724.3,2.68501986]
[1754342366222,0.9379,3724.5,3724.3,2.68501986]
[1754342366423,0.9379,3724.4,3724.3,2.68501986]
[1754342366633,0.9379,3724.4,3723.4,2.685697]
[1754342366848,0.1336,3724.2,3723.5,0.1336]
[1754342367044,0.1336,3724.2,3724.1,2.68521253]
[1754342367529,0.5976,3724.2,3724.1,2.68521253]
[1754342367736,1.0715,3724.2,3723.5,0.1336]
[1754342367932,1.0715,3724.2,3723.9,2.68530672]
[1754342368237,1.0715,3724.2,3723.8,2.68538692]
[1754342368238,0.9379,3724.1,3723.8,2.68538692]
[1754342368440,0.9379,3724.0,3723.5,0.1336]
[1754342368645,0.27,3757.3,3722.5,0.20516541]
[1754342368646,0.1336,3723.5,3722.8,0.1336]
[1754342368839,0.1336,3723.5,3723.4,2.68571735]
[1754342369050,4.6386,3723.5,3723.4,2.68571735]
[1754342370262,0.1336,3723.5,3723.4,2.68571735]
[1754342370464,4.501,3723.5,3723.4,3.22487764]
[1754342370666,4.501,3723.5,3723.4,2.68571735]
[1754342372488,4.497,3723.5,3722.6,3.0]
[1754342372770,4.6306,3723.5,3723.4,2.68571735]
[1754342372972,5.0946,3723.5,3723.4,2.68571735]
[1754342373176,4.6306,3723.5,3723.4,2.68571735]
[1754342373323,0.466,3723.9,3723.8,2.68542886]
[1754342373531,0.002,3723.9,3723.8,2.68542886]
[1754342373753,4.496,3723.9,3723.8,2.68542886]
[1754342375345,0.002,3723.9,3723.8,2.68542886]
[1754342375546,4.495,3723.9,3723.8,2.68542886]
[1754342377976,0.1336,3723.8,3723.7,2.68544774]
[1754342378143,1.0715,3723.8,3723.7,2.68544774]
[1754342378470,1.0715,3723.8,3722.9,0.001]
[1754342378655,0.1336,3723.2,3722.9,0.001]
[1754342378968,4.479,3723.1,3723.0,2.6860059]
[1754342379169,4.479,3723.1,3722.9,0.001]
[1754342379170,5.4169,3723.1,3722.9,0.001]
[1754342379379,0.9379,3723.0,3722.9,0.001]
[1754342379573,0.9379,3723.0,3722.9,2.68707805]
[1754342379733,0.55665,3723.8,3723.2,2.6858056]
[1754342379932,0.1336,3723.2,3722.9,0.001]
[1754342380148,4.475,3723.1,3723.0,2.68596307]
[1754342380333,4.475,3723.1,3722.9,0.001]
[1754342380334,5.4129,3723.1,3722.9,0.001]
[1754342380557,0.9379,3723.0,3722.9,0.001]
[1754342380771,0.464,3723.5,3722.9,0.001]
[1754342381084,4.6086,3723.4,3723.3,2.68574064]
[1754342381279,5.32392513,3723.4,3723.3,2.68574064]
[1754342381481,0.1356,3723.9,3723.5,2.68558773]
[1754342381685,0.1356,3723.9,3723.2,0.1336]
[1754342381686,0.1336,3723.3,3722.9,2.68704743]
[1754342381984,0.002,3723.9,3723.0,2.6860059]
[1754342381985,0.1336,3723.1,3723.0,2.6860059]
[1754342383093,0.5976,3723.1,3723.0,2.6860059]
[1754342384148,0.1336,3723.1,3723.0,2.6860059]
[1754342384651,1.0715,3723.1,3722.9,2.68705259]
[1754342384850,0.9379,3723.0,3722.9,2.68705259]
[1754342385047,0.9399,3723.9,3722.9,3.22437997]
[1754342385253,4.73105147,3723.8,3723.1,2.68589137]
[1754342385452,0.97146876,3723.7,3723.1,2.68586224]
[1754342385650,0.9379,3723.6,3723.2,2.68584114]
[1754342385879,0.1336,3723.1,3723.0,2.68600212]
[1754342386059,5.5505,3723.1,3723.0,2.68600212]
[1754342386264,5.5505,3723.1,3722.9,0.001]
[1754342386458,5.0865,3723.1,3723.0,2.6860059]
[1754342387067,5.5751,3723.1,3723.0,2.6860059]
[1754342387877,5.5751,3723.1,3722.9,0.001]
[1754342388193,0.9499,3723.0,3722.9,0.001]
[1754342388572,0.4613,3723.0,3722.9,0.001]
[1754342388884,0.9499,3723.0,3722.9,0.001]
[1754342389255,5.4189,3723.0,3722.9,0.001]
[1754342389567,4.469,3723.0,3722.9,2.68707805]
[1754342390285,0.4886,3723.7,3723.5,2.68560147]
[1754342390458,4.9546,3723.6,3723.5,2.68560147]
[1754342391062,0.002,3723.9,3722.9,3.22440203]
[1754342391063,0.002,3723.9,3722.9,0.53832398]
[1754342391384,0.1336,3723.7,3723.6,2.6855731]
[1754342394355,0.6222,3723.7,3723.6,2.6855731]
[1754342394558,0.1336,3723.7,3723.6,2.6855731]
[1754342395065,0.6222,3723.7,3723.6,2.6855731]
[1754342396181,4.5896,3723.7,3723.6,2.6855731]
[1754342396492,4.456,3723.7,3723.6,3.22269606]
[1754342396677,4.456,3723.7,3723.6,2.6855731]
[1754342397280,5.4059,3723.7,3723.6,2.6855731]
[1754342397530,5.5395,3723.7,3723.6,2.6855731]
[1754342398003,5.5395,3723.7,3723.4,2.68567637]
[1754342398208,0.9499,3723.6,3723.5,2.68564522]
[1754342398422,0.1336,3723.2,3723.1,2.68593376]
[1754342398711,4.5786,3723.2,3723.1,2.68593376]
[1754342399437,5.0672,3723.2,3723.1,2.68593376]
[1754342400380,5.5285,3723.2,3723.1,2.68593376]
[1754342400593,5.5285,3723.2,3722.9,2.68706506]
[1754342400594,5.5285,3723.2,3722.9,0.001]
[1754342400770,0.98347417,3723.1,3722.9,0.001]
[1754342400973,0.9499,3723.1,3722.9,0.001]
[1754342401170,0.9499,3723.0,3722.9,0.001]
[1754342401719,7.21948097,3723.0,3722.9,0.001]
[1754342402014,7.21948097,3723.0,3722.5,0.001]
[1754342402015,2.68629452,3722.6,3722.5,0.001]
[1754342402171,10.7058732,3722.6,3722.5,0.001]
[1754342402373,11.62219452,3722.6,3722.5,0.001]
[1754342402572,3.1336,3722.5,3722.1,0.001]
[1754342402806,0.03358048,3722.4,3722.1,0.001]
[1754342403019,4.434,3722.3,3722.1,2.68763364]
[1754342403228,4.434,3722.3,3722.1,0.001]
[1754342403524,0.4886,3722.2,3722.1,2.68765538]
[1754342403827,4.5656,3722.2,3722.1,0.001]
[1754342403985,4.5656,3722.2,3722.1,2.68765538]
[1754342404381,5.5155,3722.2,3722.1,0.001]
[1754342404579,6.06705,3722.2,3722.1,0.001]
[1754342404995,8.7536332,3722.2,3722.1,0.001]
[1754342405217,8.7536332,3722.2,3721.5,0.001]
[1754342405393,5.68679975,3721.9,3721.5,0.001]
[1754342405591,7.43,3721.9,3721.5,0.001]
[1754342405820,9.328045,3721.9,3721.5,0.001]
[1754342406118,12.01484475,3721.9,3721.5,0.001]
[1754342406317,12.56484475,3721.9,3721.5,0.001]
[1754342406622,9.878045,3721.9,3721.5,0.001]
[1754342406943,12.56484475,3721.9,3721.5,0.001]
[1754342409325,42.56484475,3721.9,3721.5,0.001]
[1754342410713,6.37047194,3721.8,3721.5,0.001]
[1754342410918,10.0490338,3721.8,3721.5,0.001]
[1754342411093,40.0490338,3721.8,3721.7,1e-08]
[1754342411623,6.23701633,3721.6,3721.5,1e-08]
[1754342411829,40.65301633,3721.6,3721.5,1e-08]
[1754342412029,44.33157819,3721.6,3721.5,1e-08]
[1754342413125,3.23730517,3721.2,3721.1,0.001]
[1754342413300,47.13789648,3721.2,3721.1,0.001]
[1754342413499,48.05420517,3721.2,3721.1,0.001]
[1754342413702,36.23737738,3721.1,3721.0,1e-08]
[1754342413910,0.55,3720.8,3718.9,2.68994525]
[1754342414101,31.73998531,3721.1,3718.9,0.001]
[1754342414102,3.0,3719.6,3718.9,0.001]
[1754342414327,4.415,3719.5,3718.9,0.001]
[1754342415122,0.03360757,3719.4,3718.9,0.001]
[1754342415327,4.962,3719.3,3718.9,0.001]
[1754342415523,7.10076979,3719.2,3718.9,0.001]
[1754342415690,4.412,3719.2,3718.9,0.001]
[1754342416424,4.9006,3719.2,3718.9,0.001]
[1754342416591,7.10075243,3719.2,3718.9,0.001]
[1754342416793,0.4671,3719.1,3718.9,0.001]
[1754342417095,4.409,3719.0,3718.9,0.001]
[1754342418724,4.8761,3719.0,3718.9,0.001]
[1754342419212,4.409,3719.0,3718.9,0.001]
[1754342420818,4.44261118,3719.0,3718.9,0.001]
[1754342421220,4.409,3719.0,3718.9,0.001]
[1754342422614,4.44261118,3719.0,3718.9,0.001]
[1754342423138,4.90971118,3719.0,3718.9,0.001]
[1754342423934,4.89171118,3719.0,3718.9,0.001]
[1754342424297,4.8581,3719.0,3718.9,0.001]
[1754342424497,4.391,3719.0,3718.9,0.001]
[1754342425543,6.455,3719.5,3719.4,2.68860568]
[1754342425928,10.842,3719.5,3719.4,2.68860568]
[1754342426308,6.455,3719.5,3719.4,2.68860568]
[1754342426503,2.68867797,3719.3,3718.9,0.001]
[1754342426709,5.07195,3719.2,3718.9,0.001]
[1754342426909,1.46805,3719.2,3718.9,0.001]
[1754342427146,5.3015,3719.1,3718.9,0.001]
[1754342427315,7.99032662,3719.1,3718.9,0.001]
[1754342427520,2.72250604,3719.0,3718.9,0.001]
[1754342427842,4.67378782,3719.0,3718.9,0.001]
[1754342428146,1.95128178,3719.0,3718.9,0.001]
[1754342429313,0.55155,3719.2,3718.9,2.68996716]
[1754342429517,0.55155,3719.2,3718.9,0.001]
[1754342429518,4.38,3719.1,3718.9,0.001]
[1754342430847,0.4671,3719.3,3718.9,0.001]
[1754342431051,6.455,3719.5,3718.9,0.001]
[1754342431362,6.455,3719.5,3718.9,2.68994432]
[1754342431363,4.375,3719.4,3718.9,2.68994432]
[1754342431527,4.375,3719.4,3719.0,2.68888982]
[1754342431721,4.375,3719.4,3718.9,2.68994256]
[1754342431939,4.8421,3719.4,3719.0,2.68887885]
[1754342432348,0.1344,3719.0,3718.9,2.68994567]
[1754342432711,6.455,3719.5,3718.9,2.68994567]
[1754342432712,6.455,3719.5,3719.4,2.68860568]
[1754342433114,10.825,3719.5,3719.4,2.68860568]
[1754342433528,6.455,3719.5,3719.4,2.68860568]
[1754342433727,10.824,3719.5,3719.4,2.68860568]
[1754342434565,6.455,3719.5,3719.4,2.68860568]
[1754342434771,10.824,3719.5,3719.4,2.68860568]
[1754342435675,4.369,3719.5,3719.4,2.68860568]
[1754342438534,0.1344,3719.4,3719.1,2.68882256]
[1754342438740,0.1344,3719.4,3719.3,2.68867797]
[1754342440240,1.0509,3719.4,3719.0,2.68889486]
[1754342440440,0.9165,3719.3,3718.9,2.68991751]
[1754342440659,5.2805,3719.2,3718.9,0.001]
[1754342441081,4.364,3719.2,3718.9,0.001]
[1754342441398,0.9165,3719.1,3718.9,0.001]
[1754342441791,0.4671,3719.0,3718.9,0.001]
[1754342442290,0.9165,3719.0,3718.9,0.001]
[1754342442492,0.4671,3719.0,3718.9,0.001]
[1754342442795,0.9165,3719.0,3718.9,0.001]
[1754342443185,1.1679629,3719.0,3718.9,0.001]
[1754342443765,0.9165,3719.0,3718.9,0.001]
[1754342443965,1.16806179,3719.0,3718.9,0.001]
[1754342444700,4.364,3719.0,3718.9,2.68996716]
[1754342445078,0.1344,3719.1,3719.0,2.68889486]
[1754342445280,4.4984,3719.1,3719.0,2.68889486]
[1754342446559,4.4984,3719.1,3718.9,0.001]
[1754342446560,5.4483,3719.1,3718.9,0.001]
[1754342446765,4.4984,3719.1,3719.0,2.68889486]
[1754342447365,4.364,3719.1,3719.0,2.68889486]
[1754342448535,4.364,3719.1,3718.9,0.001]
[1754342448800,0.9499,3719.0,3718.9,0.001]
[1754342449035,0.6204,3719.0,3718.9,0.001]
[1754342449367,1.0843,3719.0,3718.9,0.001]
[1754342451304,4.32138589,3719.0,3718.9,0.001]
[1754342454236,1.63249103,3719.0,3718.9,0.001]
[1754342455330,4.32138589,3719.0,3718.9,0.001]
[1754342455532,0.1344,3719.0,3718.9,0.001]
[1754342455877,4.363,3719.0,3718.9,0.001]
[1754342456146,4.363,3719.0,3718.9,2.68996716]
[1754342456349,4.363,3719.0,3718.9,0.001]
[1754342456509,4.849,3719.0,3718.9,0.001]
[1754342457526,5.3339,3719.0,3718.9,0.001]
[1754342457715,5.7978,3719.0,3718.9,0.001]
[1754342458139,8.48669486,3719.0,3718.9,0.001]
[1754342458514,9.83078603,3719.0,3718.9,0.001]
[1754342458738,15.49369486,3719.0,3718.9,0.001]
[1754342459911,11.13069486,3719.0,3718.9,0.001]
[1754342460111,15.49369486,3719.0,3718.9,0.001]
[1754342460640,12.2548,3719.0,3718.9,0.001]
[1754342460841,14.94369486,3719.0,3718.9,0.001]
[1754342461410,15.49369486,3719.0,3718.9,0.001]
[1754342462444,15.49369486,3719.0,3718.9,1e-08]
[1754342462667,15.49369486,3719.0,3718.1,0.001]
[1754342462668,3.2394734,3718.2,3718.1,0.001]
[1754342462824,3.23976276,3717.8,3717.7,0.001]
[1754342463027,2.69022749,3717.2,3716.5,2.69065233]
[1754342463327,4.363,3717.1,3715.7,0.1423]
[1754342463526,4.363,3717.1,3716.4,2.69070927]
[1754342463735,4.363,3717.1,3716.5,2.69065834]
[1754342463932,0.486,3717.8,3717.3,2.69007775]
[1754342464135,4.363,3717.7,3716.6,3.0]
[1754342464454,4.363,3717.7,3717.3,2.69005397]
[1754342464963,4.363,3717.7,3717.1,2.69021093]
[1754342465143,4.363,3717.7,3716.7,0.0024]
[1754342465346,4.363,3717.7,3716.5,0.67903676]
[1754342465652,4.363,3717.7,3717.1,2.69020487]
[1754342465888,34.22345989,3717.6,3715.6,0.0024]
[1754342466025,3.0,3717.4,3715.8,0.1409]
[1754342466225,2.69025044,3717.2,3716.4,2.69074018]
[1754342466419,2.69025044,3717.2,3716.1,2.69092801]
[1754342466420,7.05329177,3717.1,3716.1,2.69092801]
[1754342466645,2.69053251,3716.8,3716.0,2.69099979]
[1754342466855,4.363,3716.7,3715.9,2.69107656]
[1754342467168,2.69089515,3716.3,3715.7,2.69127245]
[1754342467325,2.69127018,3715.8,3714.7,0.001]
[1754342467528,4.362,3715.7,3714.7,0.001]
[1754342467821,4.362,3715.6,3714.8,0.1433]
[1754342468068,4.362,3715.6,3715.0,2.69178054]
[1754342468223,7.0533593,3715.6,3714.8,2.69193496]
[1754342468570,7.0533593,3715.6,3714.8,2.69187267]
[1754342468571,0.1344,3714.9,3714.8,2.69187267]
[1754342468870,4.4964,3714.9,3714.8,2.69187267]
[1754342469024,4.4964,3714.9,3714.7,0.001]
[1754342469222,4.4964,3714.9,3714.7,2.69293681]
[1754342469422,4.4964,3714.9,3714.8,2.69193496]
[1754342469655,4.4964,3714.9,3714.7,0.001]
[1754342469861,0.03364918,3714.8,3714.7,0.001]
[1754342470020,0.486,3714.8,3714.7,0.001]
[1754342470225,4.35526027,3714.8,3714.7,0.001]
[1754342470471,1.62967613,3714.8,3714.7,0.001]
[1754342470627,4.35526027,3714.8,3714.7,0.001]
[1754342470826,1.62967613,3714.8,3714.7,0.001]
[1754342471056,0.9499,3714.8,3714.7,0.001]
[1754342471263,3.67548414,3714.8,3714.7,0.001]
[1754342471574,5.3129,3714.8,3714.7,0.001]
[1754342472157,11.00483496,3714.8,3714.7,0.001]
[1754342472330,4.4999,3714.8,3714.7,0.001]
[1754342472532,8.3129,3714.8,3714.7,0.001]
[1754342472734,4.363,3714.8,3714.7,2.692987]
[1754342473331,6.946,3715.5,3714.7,0.001]
[1754342473534,6.46,3715.5,3715.4,2.69150024]
[1754342473733,10.823,3715.5,3715.4,2.69150024]
[1754342473981,10.823,3715.5,3714.7,0.001]
[1754342474147,0.1344,3715.2,3714.7,0.001]
[1754342474465,7.08837016,3715.1,3714.7,0.001]
[1754342474679,2.69187699,3714.9,3714.7,0.001]
[1754342474891,2.69193496,3714.8,3714.7,0.001]
[1754342475032,4.363,3715.0,3714.7,0.001]
[1754342475234,0.9499,3714.8,3714.7,0.001]
[1754342475536,0.486,3714.8,3714.7,0.001]
[1754342476482,4.85,3714.8,3714.7,0.001]
[1754342477386,3.24150795,3715.4,3714.7,0.001]
[1754342477387,6.46,3715.5,3714.7,0.001]
[1754342477589,6.46,3715.5,3715.3,2.69157268]
[1754342477590,4.363,3715.4,3715.3,2.69157268]
[1754342479969,0.1344,3715.3,3714.9,0.001]
[1754342480136,4.363,3715.4,3715.3,2.69157268]
[1754342480334,4.363,3715.4,3715.1,2.69170842]
[1754342480558,4.363,3715.4,3715.3,2.69157268]
[1754342481550,0.4297,3716.5,3715.3,0.53832867]
[1754342481753,0.1344,3715.8,3715.7,2.69128293]
[1754342481992,4.4974,3715.8,3715.7,2.69128293]
[1754342484169,0.1344,3715.8,3715.7,2.69128293]